fUSD/lending_fUSD_20250616
["ID","MTS","AMOUNT","RATE_DAILY","PERIOD"]
[366117688,1750073442596,-504.7,0.00016438,2]
[366117690,1750073442606,-614.28,0.00016438,2]
[366117691,1750073442616,-490.0,0.00016438,2]
[366117692,1750073442627,-1157.09,0.00016438,2]
[366117693,1750073442638,-490.0,0.00016438,2]
[366117695,1750073442647,-1336.1,0.00016438,2]
[366117697,1750073442658,-495.59,0.00016438,2]
[366117699,1750073442668,-1106.81,0.00016438,2]
[366117701,1750073442678,-1303.22,0.00016438,2]
[366117703,1750073442688,-490.0,0.00016438,2]
[366117705,1750073442698,-587.02,0.00016438,2]
[366117707,1750073442708,-1629.62,0.00016438,2]
[366117708,1750073442718,-583.33,0.00016438,2]
[366117709,1750073442728,-1111.01,0.00016438,2]
[366117710,1750073442738,-805.81,0.00016438,2]
[366117711,1750073442749,-490.86,0.00016438,2]
[366117712,1750073442759,-490.0,0.00016438,2]
[366117713,1750073442769,-490.0,0.00016438,2]
[366117714,1750073442779,-490.0,0.00016438,2]
[366117715,1750073442789,-490.0,0.00016438,2]
[366117716,1750073442799,-490.0,0.00016438,2]
[366117717,1750073442809,-1069.94,0.00016438,2]
[366117718,1750073442819,-526.93,0.00016438,2]
[366117719,1750073442829,-151.0,0.00016438,2]
[366117720,1750073442838,-490.0,0.00016438,2]
[366117721,1750073442847,-490.0,0.00016438,2]
[366117722,1750073442857,-490.0,0.00016438,2]
[366117723,1750073442866,-513.43,0.00016438,2]
[366117724,1750073442876,-703.91,0.00016438,2]
[366117725,1750073442887,-490.0,0.00016438,2]
[366117726,1750073442896,-1388.45,0.00016438,2]
[366117727,1750073442911,-490.0,0.00016438,2]
[366117728,1750073442921,-1093.15,0.00016438,2]
[366117729,1750073442932,-490.0,0.00016438,2]
[366117730,1750073442942,-490.0,0.00016438,2]
[366117731,1750073442952,-1036.83,0.00016438,2]
[366117732,1750073442962,-932.92,0.00016438,2]
[366117733,1750073442972,-490.0,0.00016438,2]
[366117734,1750073442983,-1043.06,0.00016438,2]
[366117735,1750073442994,-492.6976837,0.00016438,2]
[366117736,1750073443004,-490.0,0.00016438,2]
[366117737,1750073443014,-1008.32,0.00016438,2]
[366117738,1750073443024,-151.0,0.00016438,2]
[366117739,1750073443034,-490.0,0.00016438,2]
[366117740,1750073443045,-8743.58,0.00016438,2]
[366117741,1750073443055,-490.0,0.00016438,2]
[366117742,1750073443066,-805.86,0.00016438,2]
[366117743,1750073443075,-958.42,0.00016438,2]
[366117744,1750073443086,-575.35,0.00016438,2]
[366117745,1750073443095,-753.27,0.00016438,2]
[366117746,1750073443105,-1466.03,0.00016438,2]
[366117747,1750073443116,-570.99,0.00016438,2]
[366117748,1750073443126,-688.78,0.00016438,2]
[366117749,1750073443141,-490.0,0.00016438,2]
[366117750,1750073443158,-19848.8,0.00016438,2]
[366117751,1750073443169,-490.0,0.00016438,2]
[366117752,1750073443179,-1625.75,0.00016438,2]
[366117753,1750073443189,-151.0,0.00016438,2]
[366117754,1750073443199,-490.0,0.00016438,2]
[366117755,1750073443209,-924.53,0.00016438,2]
[366117756,1750073443219,-1221.97,0.00016438,2]
[366117757,1750073443229,-8879.42,0.00016438,2]
[366117758,1750073443239,-490.0,0.00016438,2]
[366117759,1750073443249,-490.0,0.00016438,2]
[366117760,1750073443259,-1180.0,0.00016438,2]
[366117761,1750073443270,-1592.24,0.00016438,2]
[366117762,1750073443280,-1874.53,0.00016438,2]
[366117763,1750073443289,-1319.95,0.00016438,2]
[366117764,1750073443300,-1204.22,0.00016438,2]
[366117765,1750073443311,-1547.91,0.00016438,2]
[366117766,1750073443324,-3445.94,0.00016438,2]
[366117767,1750073443334,-490.0,0.00016438,2]
[366117768,1750073443344,-440.0,0.00016438,2]
[366117769,1750073443354,-490.0,0.00016438,2]
[366117770,1750073443373,-3420.5,0.00016438,2]
[366117771,1750073443388,-2045.08,0.00016438,2]
[366117772,1750073443399,-490.0,0.00016438,2]
[366117773,1750073443409,-614.51602499,0.00016438,2]
[366117774,1750073443420,-151.0,0.00016438,2]
[366117775,1750073443430,-490.0,0.00016438,2]
[366117776,1750073443440,-490.0,0.00016438,2]
[366117777,1750073443450,-707.12,0.00016438,2]
[366117778,1750073443460,-2393.72,0.00016438,2]
[366117779,1750073443471,-5270.49,0.00016438,2]
[366117780,1750073443481,-622.74887609,0.00016438,2]
[366117781,1750073443492,-490.0,0.00016438,2]
[366117782,1750073443502,-490.0,0.00016438,2]
[366117783,1750073443512,-150.0,0.00016438,2]
[366117784,1750073443522,-648.64,0.00016438,2]
[366117785,1750073443532,-1188.62,0.00016438,2]
[366117786,1750073443541,-1697.0,0.00016438,2]
[366117787,1750073443551,-490.0,0.00016438,2]
[366117788,1750073443561,-490.0,0.00016438,2]
[366117789,1750073443571,-1864.25,0.00016438,2]
[366117790,1750073443582,-151.0,0.00016438,2]
[366117791,1750073443592,-490.0,0.00016438,2]
[366117792,1750073443602,-1281.31,0.00016438,2]
[366117793,1750073443612,-460.0,0.00016438,2]
[366117794,1750073443624,-625.28,0.00016438,2]
[366117795,1750073443634,-1059.09,0.00016438,2]
[366117796,1750073443644,-490.0,0.00016438,2]
[366117797,1750073443653,-3975.05,0.00016438,2]
[366117798,1750073443664,-151.0,0.00016438,2]
[366117799,1750073443674,-902.81,0.00016438,2]
[366117800,1750073443684,-686.46,0.00016438,2]
[366117801,1750073443694,-822.27,0.00016438,2]
[366117802,1750073443704,-1093.15,0.00016438,2]
[366117803,1750073443715,-490.0,0.00016438,2]
[366117804,1750073443726,-1022.47,0.00016438,2]
[366117805,1750073443736,-1031.95,0.00016438,2]
[366117806,1750073443746,-490.0,0.00016438,2]
[366117807,1750073443756,-2800.1,0.00016438,2]
[366117808,1750073443766,-490.0,0.00016438,2]
[366117809,1750073443776,-584.07,0.00016438,2]
[366117810,1750073443786,-151.0,0.00016438,2]
[366117811,1750073443796,-490.0,0.00016438,2]
[366117812,1750073443811,-490.0,0.00016438,2]
[366117813,1750073443822,-1458.81,0.00016438,2]
[366117814,1750073443833,-925.96,0.00016438,2]
[366117815,1750073443843,-151.0,0.00016438,2]
[366117816,1750073443852,-490.0,0.00016438,2]
[366117817,1750073443862,-892.09,0.00016438,2]
[366117818,1750073443872,-490.0,0.00016438,2]
[366117819,1750073443882,-490.0,0.00016438,2]
[366117820,1750073443893,-2055.06,0.00016438,2]
[366117821,1750073443903,-490.0,0.00016438,2]
[366117822,1750073443912,-490.0,0.00016438,2]
[366117823,1750073443923,-490.0,0.00016438,2]
[366117824,1750073443932,-3780.68,0.00016438,2]
[366117825,1750073443942,-490.0,0.00016438,2]
[366117826,1750073443952,-1207.63,0.00016438,2]
[366117827,1750073443963,-151.0,0.00016438,2]
[366117828,1750073443974,-178.84054972,0.00016438,2]
[366117829,1750073443985,-2934.41,0.00016438,2]
[366117830,1750073443995,-490.0,0.00016438,2]
[366117831,1750073444006,-1734.49,0.00016438,2]
[366117832,1750073444016,-490.0,0.00016438,2]
[366117833,1750073444027,-490.0,0.00016438,2]
[366117834,1750073444037,-151.0,0.00016438,2]
[366117835,1750073444048,-490.0,0.00016438,2]
[366117836,1750073444058,-1325.05,0.00016438,2]
[366117837,1750073444069,-807.28,0.00016438,2]
[366117838,1750073444079,-15470.1,0.00016438,2]
[366117839,1750073444089,-7433.18,0.00016438,2]
[366117840,1750073444539,-493.25456761,0.00016438,2]
[366117841,1750073444554,-490.0,0.00016438,2]
[366117842,1750073444564,-6096.92,0.00016438,2]
[366117843,1750073444575,-1316.46,0.00016438,2]
[366117844,1750073444584,-490.0,0.00016438,2]
[366117845,1750073444595,-490.0,0.00016438,2]
[366117846,1750073444605,-490.0,0.00016438,2]
[366117847,1750073444615,-1397.86,0.00016438,2]
[366117848,1750073444625,-490.0,0.00016438,2]
[366117849,1750073444634,-490.0,0.00016438,2]
[366117850,1750073444645,-500.84,0.00016438,2]
[366117851,1750073444655,-490.0,0.00016438,2]
[366117852,1750073444664,-4541.62,0.00016438,2]
[366117853,1750073444674,-636.47,0.00016438,2]
[366117854,1750073444684,-1128.3,0.00016438,2]
[366117855,1750073444693,-3284.74,0.00016438,2]
[366117856,1750073444703,-3728.27,0.00016438,2]
[366117857,1750073444712,-490.0,0.00016438,2]
[366117858,1750073444722,-508.87,0.00016438,2]
[366117859,1750073444732,-771.16,0.00016438,2]
[366117860,1750073444742,-490.0,0.00016438,2]
[366117861,1750073444754,-150.0,0.00016438,2]
[366117862,1750073444764,-873.59,0.00016438,2]
[366117863,1750073444774,-636.48,0.00016438,2]
[366117864,1750073444784,-3154.7,0.00016438,2]
[366117865,1750073444795,-1268.27,0.00016438,2]
[366117866,1750073444807,-13515.53,0.00016438,2]
[366117867,1750073444816,-866.45,0.00016438,2]
[366117868,1750073444827,-490.0,0.00016438,2]
[366117869,1750073444837,-2856.11,0.00016438,2]
[366117870,1750073444847,-933.53,0.00016438,2]
[366117871,1750073444857,-151.0,0.00016438,2]
[366117872,1750073444867,-490.0,0.00016438,2]
[366117873,1750073444877,-490.0,0.00016438,2]
[366117874,1750073444888,-490.0,0.00016438,2]
[366117875,1750073444898,-151.0,0.00016438,2]
[366117876,1750073444908,-493.11991115,0.00016438,2]
[366117877,1750073444918,-490.0,0.00016438,2]
[366117878,1750073444928,-3685.08,0.00016438,2]
[366117879,1750073444938,-785.02,0.00016438,2]
[366117880,1750073444948,-1489.61,0.00016438,2]
[366117881,1750073444958,-1979.87,0.00016438,2]
[366117882,1750073444968,-928.45,0.00016438,2]
[366117883,1750073444978,-490.0,0.00016438,2]
[366117884,1750073444988,-4534.64,0.00016438,2]
[366117885,1750073444998,-506.02,0.00016438,2]
[366117886,1750073445009,-8839.01,0.00016438,2]
[366117887,1750073445019,-1020.06,0.00016438,2]
[366117888,1750073445030,-1310.12,0.00016438,2]
[366117889,1750073445042,-682.12,0.00016438,2]
[366117890,1750073445053,-2298.37,0.00016438,2]
[366117891,1750073445062,-490.0,0.00016438,2]
[366117892,1750073445072,-453.10325061,0.00016438,2]
[366117893,1750073445083,-852.06,0.00016438,2]
[366117894,1750073445094,-151.0,0.00016438,2]
[366117895,1750073445103,-1720.83,0.00016438,2]
[366117896,1750073445113,-2414.02,0.00016438,2]
[366117897,1750073445123,-1824.45,0.00016438,2]
[366117898,1750073445134,-151.0,0.00016438,2]
[366117899,1750073445145,-1709.7,0.00016438,2]
[366117900,1750073445155,-490.0,0.00016438,2]
[366117901,1750073445165,-1686.95,0.00016438,2]
[366117902,1750073445175,-1556.15,0.00016438,2]
[366117903,1750073445186,-356.7813325,0.00016438,2]
[366117904,1750073445196,-490.0,0.00016438,2]
[366117905,1750073445206,-759.35,0.00016438,2]
[366117906,1750073445216,-529.59,0.00016438,2]
[366117907,1750073445226,-1299.84,0.00016438,2]
[366117908,1750073445237,-1475.98,0.00016438,2]
[366117909,1750073445247,-3767.53,0.00016438,2]
[366117910,1750073445258,-490.0,0.00016438,2]
[366117911,1750073445268,-1729.11,0.00016438,2]
[366117912,1750073445278,-490.0,0.00016438,2]
[366117913,1750073445288,-490.0,0.00016438,2]
[366117914,1750073445298,-490.0,0.00016438,2]
[366117915,1750073445309,-1173.71,0.00016438,2]
[366117916,1750073445323,-490.0,0.00016438,2]
[366117917,1750073445333,-490.0,0.00016438,2]
[366117918,1750073445344,-1109.18,0.00016438,2]
[366117919,1750073445354,-1453.01,0.00016438,2]
[366117920,1750073445364,-490.0,0.00016438,2]
[366117921,1750073445375,-4250.71,0.00016438,2]
[366117922,1750073445385,-1989.15,0.00016438,2]
[366117923,1750073445402,-2132.24,0.00016438,2]
[366117924,1750073445412,-831.82,0.00016438,2]
[366117925,1750073445422,-490.0,0.00016438,2]
[366117926,1750073445432,-490.0,0.00016438,2]
[366117927,1750073445442,-3287.58,0.00016438,2]
[366117928,1750073445452,-490.0,0.00016438,2]
[366117929,1750073445461,-1211.69147,0.00016438,2]
[366117930,1750073445471,-1031.64,0.00016438,2]
[366117931,1750073445481,-2163.56,0.00016438,2]
[366117932,1750073445492,-491.42602028,0.00016438,2]
[366117933,1750073445502,-1211.69147,0.00016438,2]
[366117934,1750073445512,-5171.7,0.00016438,2]
[366117935,1750073445522,-1083.66,0.00016438,2]
[366117936,1750073445532,-2009.85,0.00016438,2]
[366117937,1750073445543,-1710.17,0.00016438,2]
[366117938,1750073445552,-557.89,0.00016438,2]
[366117939,1750073445562,-1958.5,0.00016438,2]
[366117940,1750073445572,-490.0,0.00016438,2]
[366117941,1750073445582,-500.0,0.00016438,2]
[366117942,1750073445592,-500.0,0.00016438,2]
[366117943,1750073445601,-500.0,0.00016438,2]
[366117944,1750073445611,-642.08,0.00016438,2]
[366117945,1750073445621,-1271.68,0.00016438,2]
[366117946,1750073445631,-1832.85,0.00016438,2]
[366117947,1750073445642,-490.0,0.00016438,2]
[366117948,1750073445651,-5580.0,0.00016438,2]
[366117949,1750073445661,-2328.58,0.00016438,2]
[366117950,1750073445671,-490.0,0.00016438,2]
[366117951,1750073445681,-232.00159,0.00016438,2]
[366117952,1750073445691,-734.34,0.00016438,2]
[366117953,1750073445700,-3033.48,0.00016438,2]
[366117954,1750073445709,-1205.11,0.00016438,2]
[366117955,1750073445719,-1711.41,0.00016438,2]
[366117956,1750073445729,-490.0,0.00016438,2]
[366117957,1750073445739,-985.58,0.00016438,2]
[366117958,1750073445749,-490.0,0.00016438,2]
[366117959,1750073445760,-882.17,0.00016438,2]
[366117960,1750073445770,-490.0,0.00016438,2]
[366117961,1750073445779,-20251.09,0.00016438,2]
[366117962,1750073445788,-1632.41,0.00016438,2]
[366117963,1750073445798,-1475.26,0.00016438,2]
[366117964,1750073445808,-704.67,0.00016438,2]
[366117965,1750073445818,-490.0,0.00016438,2]
[366117966,1750073445828,-1031.3,0.00016438,2]
[366117967,1750073445838,-151.0,0.00016438,2]
[366117968,1750073445850,-3493.3,0.00016438,2]
[366117969,1750073445859,-649.56,0.00016438,2]
[366117970,1750073445870,-853.99,0.00016438,2]
[366117971,1750073445880,-3168.13,0.00016438,2]
[366117972,1750073445890,-524.35,0.00016438,2]
[366117973,1750073445900,-625.31,0.00016438,2]
[366117974,1750073445910,-1016.98,0.00016438,2]
[366117975,1750073445919,-694.27,0.00016438,2]
[366117976,1750073445930,-1477.42,0.00016438,2]
[366117977,1750073445939,-6366.9,0.00016438,2]
[366117978,1750073445949,-1844.62,0.00016438,2]
[366117979,1750073445958,-490.0,0.00016438,2]
[366117980,1750073445968,-2581.49,0.00016438,2]
[366117981,1750073445978,-490.0,0.00016438,2]
[366117982,1750073445987,-490.0,0.00016438,2]
[366117984,1750073445997,-1083.74,0.00016438,2]
[366117985,1750073446007,-218.553934,0.00016438,2]
[366117987,1750073446017,-490.0,0.00016438,2]
[366117989,1750073446027,-490.0,0.00016438,2]
[366117991,1750073446036,-490.0,0.00016438,2]
[366117993,1750073446046,-1359.71,0.00016438,2]
[366117995,1750073446057,-3042.71,0.00016438,2]
[366117997,1750073446069,-490.0,0.00016438,2]
[366117999,1750073446079,-218.553934,0.00016438,2]
[366118001,1750073446088,-1052.61,0.00016438,2]
[366118002,1750073446098,-952.95,0.00016438,2]
[366118004,1750073446108,-1609.79,0.00016438,2]
[366118006,1750073446118,-490.0,0.00016438,2]
[366118008,1750073446128,-490.0,0.00016438,2]
[366118010,1750073446137,-678.55,0.00016438,2]
[366118012,1750073446148,-490.0,0.00016438,2]
[366118014,1750073446158,-490.0,0.00016438,2]
[366118016,1750073446168,-705.81,0.00016438,2]
[366118018,1750073446177,-490.0,0.00016438,2]
[366118020,1750073446189,-1042.74,0.00016438,2]
[366118022,1750073446198,-490.0,0.00016438,2]
[366118024,1750073446208,-490.0,0.00016438,2]
[366118026,1750073446219,-490.0,0.00016438,2]
[366118028,1750073446228,-490.0,0.00016438,2]
[366118030,1750073446238,-490.0,0.00016438,2]
[366118032,1750073446247,-300.0,0.00016438,2]
[366118034,1750073446257,-3014.3,0.00016438,2]
[366118036,1750073446268,-1111.59,0.00016438,2]
[366118037,1750073446277,-1992.66,0.00016438,2]
[366118038,1750073446286,-490.0,0.00016438,2]
[366118039,1750073446296,-153.260645,0.00016438,2]
[366118040,1750073446305,-490.0,0.00016438,2]
[366118041,1750073446317,-490.0,0.00016438,2]
[366118042,1750073446326,-490.0,0.00016438,2]
[366118043,1750073446336,-490.0,0.00016438,2]
[366118044,1750073446345,-655.03,0.00016438,2]
[366118045,1750073446355,-3180.23,0.00016438,2]
[366118046,1750073446365,-1446.38,0.00016438,2]
[366118047,1750073446374,-2687.41,0.00016438,2]
[366118048,1750073446383,-490.0,0.00016438,2]
[366118049,1750073446396,-490.0,0.00016438,2]
[366118051,1750073446406,-643.76,0.00016438,2]
[366118053,1750073446415,-150.0,0.00016438,2]
[366118055,1750073446424,-3096.34,0.00016438,2]
[366118057,1750073446434,-2275.76,0.00016438,2]
[366118059,1750073446443,-977.89,0.00016438,2]
[366118061,1750073446452,-862.07,0.00016438,2]
[366118063,1750073446462,-490.0,0.00016438,2]
[366118065,1750073446471,-490.0,0.00016438,2]
[366118067,1750073446481,-490.0,0.00016438,2]
[366118069,1750073446490,-1345.36,0.00016438,2]
[366118071,1750073446499,-490.0,0.00016438,2]
[366118073,1750073446509,-1181.8313105,0.00016443,2]
[366118075,1750073446519,-826.64613972,0.00016452,2]
[366118077,1750073446528,-150.0,0.00016454,2]
[366118079,1750073446539,-833.8156298,0.00016456,2]
[366118081,1750073446548,-1000.0,0.00016459,2]
[366118083,1750073446558,-150.0,0.00016465,2]
[366118085,1750073446568,-150.0,0.00016465,2]
[366118087,1750073446578,-150.0,0.00016465,2]
[366118089,1750073446587,-150.0,0.00016465,2]
[366118091,1750073446597,-150.0,0.00016465,2]
[366118093,1750073446606,-202.25101604,0.00016465,2]
[366118094,1750073446616,-500.0,0.00016465,2]
[366118096,1750073446625,-500.0,0.00016465,2]
[366118098,1750073446635,-200.0,0.00016465,2]
[366118100,1750073446644,-202.95539089,0.00016465,2]
[366118102,1750073446653,-150.0,0.00016465,2]
[366118104,1750073446663,-150.0,0.00016465,2]
[366118106,1750073446672,-150.0,0.00016465,2]
[366118108,1750073446682,-150.0,0.00016465,2]
[366118110,1750073446691,-150.0,0.00016465,2]
[366118112,1750073446701,-200.76193588,0.00016465,2]
[366118114,1750073446710,-500.0,0.00016465,2]
[366118116,1750073446719,-2000.0,0.00016467,2]
[366118118,1750073446730,-500.0,0.00016467,2]
[366118120,1750073446739,-200.0,0.00016467,2]
[366118122,1750073446748,-2000.0,0.00016468,2]
[366118124,1750073446758,-500.0,0.00016468,2]
[366118126,1750073446768,-1000.0,0.00016478,2]
[366118128,1750073446778,-151.0,0.00016484,2]
[366118129,1750073446788,-199.703375,0.00016484,2]
[366118131,1750073446797,-199.703375,0.00016484,2]
[366118133,1750073446807,-151.0,0.00016484,2]
[366118135,1750073446818,-826.64613972,0.00016486,2]
[366118137,1750073446827,-150.0,0.00016492,2]
[366118140,1750073446837,-200.60586234,0.00016492,2]
[366118142,1750073446847,-200.0,0.00016492,2]
[366118144,1750073446856,-500.0,0.00016492,2]
[366118146,1750073446866,-500.0,0.00016492,2]
[366118148,1750073446876,-150.0,0.00016492,2]
[366118150,1750073446886,-150.0,0.00016492,2]
[366118151,1750073446895,-201.31927875,0.00016492,2]
[366118154,1750073446905,-150.0,0.00016492,2]
[366118155,1750073446915,-202.07311355,0.00016492,2]
[366118158,1750073446924,-162.74938912,0.00016501,2]
[366118160,1750073446935,-2193.96275636,0.00016502,2]
[366118162,1750073446948,-1227.46596631,0.00016508,2]
[366118164,1750073446958,-1181.8313105,0.00016512,2]
[366118166,1750073446967,-156.54858585,0.0001652,2]
[366118168,1750073446977,-500.0,0.0001652,2]
[366118170,1750073446986,-150.0,0.0001652,2]
[366118172,1750073446996,-150.0,0.0001652,2]
[366118174,1750073447006,-1000.0,0.00016521,2]
[366118176,1750073447016,-770.96611032,0.00016521,2]
[366118178,1750073447025,-1000.0,0.00016521,2]
[366118180,1750073447035,-1000.0,0.00016521,2]
[366118182,1750073447044,-522.81888161,0.00016521,2]
[366118184,1750073447055,-1000.0,0.00016521,2]
[366118186,1750073447064,-1000.0,0.00016521,2]
[366118188,1750073447074,-985.56015135,0.00016521,2]
[366118190,1750073447083,-1000.0,0.00016521,2]
[366118192,1750073447093,-1000.0,0.00016521,2]
[366118194,1750073447103,-1000.0,0.00016521,2]
[366118196,1750073447112,-1000.0,0.00016521,2]
[366118198,1750073447122,-1000.0,0.00016521,2]
[366118200,1750073447131,-826.64613972,0.00016521,2]
[366118202,1750073447140,-151.0,0.00016521,2]
[366118204,1750073447151,-151.0,0.00016521,2]
[366118206,1750073447161,-151.0,0.00016521,2]
[366118207,1750073447172,-500.0,0.00016547,2]
[366118208,1750073447182,-150.0,0.00016547,2]
[366118209,1750073447192,-150.0,0.00016547,2]
[366118210,1750073447202,-826.64613972,0.00016555,2]
[366118211,1750073447211,-182.84736909,0.00016568,2]
[366118212,1750073447224,-205.71163978,0.00016575,2]
[366118213,1750073447233,-350.0,0.00016576,2]
[366118214,1750073447243,-1181.8313105,0.0001658,2]
[366118215,1750073447253,-1227.46596631,0.0001658,2]
[366118216,1750073447263,-46788.0946107,0.00016587,2]
[366118217,1750073447273,-507.26937,0.00016587,2]
[366118218,1750073447283,-507.26937,0.00016587,2]
[366118219,1750073447292,-153.558206,0.00016587,2]
[366118220,1750073447302,-153.558206,0.00016587,2]
[366118221,1750073447311,-151.0,0.00016587,2]
[366118222,1750073447326,-151.0,0.00016587,2]
[366118223,1750073447335,-771.368373,0.00016587,2]
[366118224,1750073447345,-771.368373,0.00016587,2]
[366118225,1750073447354,-1354.642034,0.00016587,2]
[366118226,1750073447364,-1354.642034,0.00016587,2]
[366118227,1750073447374,-402.964965,0.00016587,2]
[366118228,1750073447383,-296.463085,0.00016587,2]
[366118229,1750073447406,-296.463085,0.00016587,2]
[366118230,1750073447416,-153.068112,0.00016587,2]
[366118231,1750073447426,-151.0,0.00016587,2]
[366118232,1750073447436,-151.853439,0.00016587,2]
[366118233,1750073447445,-151.0,0.00016587,2]
[366118234,1750073447456,-19692.5461068,0.00016587,2]
[366118235,1750073447466,-151.0,0.00016587,2]
[366118236,1750073447476,-151.0,0.00016587,2]
[366118237,1750073447487,-151.0,0.00016587,2]
[366118238,1750073447496,-151.0,0.00016587,2]
[366118239,1750073447507,-151.0,0.00016587,2]
[366118240,1750073447517,-151.0,0.00016587,2]
[366118241,1750073447527,-296.936,0.00016587,2]
[366118242,1750073447539,-151.0,0.00016587,2]
[366118243,1750073447550,-78524.182,0.00016587,2]
[366118244,1750073447560,-220.426329,0.00016587,2]
[366118245,1750073447571,-220.426329,0.00016587,2]
[366118246,1750073447580,-151.0,0.00016587,2]
[366118247,1750073447589,-302.942155,0.00016587,2]
[366118248,1750073447599,-221.853486,0.00016587,2]
[366118249,1750073447609,-151.0,0.00016587,2]
[366118250,1750073447619,-302.942155,0.00016587,2]
[366118251,1750073447628,-425.595712,0.00016587,2]
[366118252,1750073447638,-221.853486,0.00016587,2]
[366118253,1750073447647,-425.595712,0.00016587,2]
[366118254,1750073447657,-41271.3849848,0.00016587,2]
[366118255,1750073447667,-151.0,0.00016587,2]
[366118256,1750073447676,-153.39334,0.00016587,2]
[366118257,1750073447686,-320.000609,0.00016587,2]
[366118258,1750073447695,-320.000609,0.00016587,2]
[366118259,1750073447705,-151.0,0.00016587,2]
[366118260,1750073447715,-151.0,0.00016587,2]
[366118261,1750073447725,-151.0,0.00016587,2]
[366118262,1750073447735,-151.0,0.00016587,2]
[366118263,1750073447745,-216.008136,0.00016587,2]
[366118264,1750073447755,-216.008136,0.00016587,2]
[366118265,1750073447764,-151.0,0.00016587,2]
[366118266,1750073447774,-161.550075,0.00016587,2]
[366118267,1750073447783,-199.703375,0.00016587,2]
[366118268,1750073447793,-199.703375,0.00016587,2]
[366118269,1750073447802,-151.0,0.00016587,2]
[366118270,1750073447811,-151.0,0.00016587,2]
[366118271,1750073447821,-151.0,0.00016587,2]
[366118272,1750073447830,-151.0,0.00016587,2]
[366118273,1750073447840,-1211.69147,0.00016587,2]
[366118274,1750073447850,-1211.69147,0.00016587,2]
[366118275,1750073447859,-218.553934,0.00016587,2]
[366118276,1750073447869,-218.553934,0.00016587,2]
[366118277,1750073447879,-176.80313314,0.00016588,2]
[366118278,1750073447889,-826.64613972,0.0001659,2]
[366118279,1750073447899,-151.0,0.00016592,2]
[366118280,1750073447909,-723.929279,0.00016592,2]
[366118281,1750073447918,-723.929279,0.00016592,2]
[366118282,1750073447928,-151.0,0.00016592,2]
[366118283,1750073447938,-152.39189,0.00016592,2]
[366118284,1750073447947,-331.981144,0.00016592,2]
[366118285,1750073447956,-331.981144,0.00016592,2]
[366118286,1750073447965,-331.981144,0.00016592,2]
[366118287,1750073447975,-331.981144,0.00016592,2]
[366118288,1750073447985,-296.60801,0.00016592,2]
[366118289,1750073447994,-296.60801,0.00016592,2]
[366118290,1750073448003,-151.0,0.00016592,2]
[366118291,1750073448014,-151.0,0.00016592,2]
[366118292,1750073448023,-189.297716,0.00016592,2]
[366118293,1750073448034,-189.297716,0.00016592,2]
[366118294,1750073448044,-189.297716,0.00016592,2]
[366118295,1750073448054,-189.297716,0.00016592,2]
[366118296,1750073448064,-1970.91269439,0.00016592,2]
[366118297,1750073448074,-151.0,0.00016593,2]
[366118298,1750073448084,-151.0,0.00016593,2]
[366118299,1750073448095,-151.0,0.00016593,2]